Cogmind - Beta 17 @@@ ROGUE MODE // 2026.08.14 @ 02:43:58 Player: 4R-ZE3 Result: Escaped! Performance ------------- Evolutions (9) 4500 Regions Visited (22) 4400 Robots Destroyed (282) 1410 Value Destroyed (12918) 12918 Prototype IDs (40) 800 Alien Tech Used (0) 0 Bonus (9949) 9949 TOTAL SCORE: 33977 Bonus ------- High Alert Combat Kills 1650 Follower Combat Kills 1399 Entered DSFs 500 Aligned with FarCom 300 Met Imprinter 300 Built Enhanced Grunts 300 Met R17 at Cetus 500 Met R17 at Research 2000 Win 3000 Cogmind --------- Core Integrity 1417/1600 Matter 116/300 Energy 554/565 System Corruption 3% Temperature Cool (16) Movement Hovering (36) Location To Epsilon Eridani Parts ------- > --- POWER (3) -------- Antimatter Reactor Particle Reactor > --- PROPULSION (6) --- Cooled Linear Gravjet Cooled Linear Gravjet Combat Linear Gravjet Combat Linear Gravjet Combat Linear Gravjet Combat Linear Gravjet > --- UTILITY (13) ----- Advanced Cooling System Armor Integrity Analyzer Advanced ECM Suite Advanced Reaction Control System Graphene Brace Improved Focal Shield Advanced Hacking Suite > --- WEAPON (3) ------- Phase Cannon Long-range Phase Cannon > --- INVENTORY (5) ---- Improved Gyrokinetic Inverter Cooled Linear Gravjet Cooled Linear Gravjet Cooled Linear Gravjet Cooled Linear Gravjet Peak State ------------ > --- POWER ------------ Particle Reactor Quantum Reactor Quantum Reactor > --- PROPULSION ------- Improved Heavy Treads Advanced Heavy Treads Centrium Heavy Treads > --- UTILITY ---------- Advanced Cooling System Advanced Cooling System Advanced Cooling System Experimental Coolant Injector Huge Storage Unit Advanced Targeting Computer Cloak of Protection Improved Medium Armor Plating Graphene Brace Advanced Hacking Suite System Shield > --- WEAPON ----------- Enhanced Nova Cannon Enhanced Nova Cannon Enhanced Nova Cannon > --- INVENTORY -------- Antimatter Reactor Antimatter Reactor Light Quantum Reactor Advanced Heavy Treads Advanced Heavy Treads Advanced Heavy Treads Advanced Cooling System Advanced Sensor Array Advanced Signal Interpreter Transmission Jammer Advanced ECM Suite Advanced Phase Shifter Improved Hardlight Generator Advanced Force Field Advanced System Restoration Module Phase Cannon Heavy Plasma Cannon Heavy Plasma Cannon Nova Cannon Nova Cannon Nova Cannon Heavy Missile Launcher [Rating: 176] Favorites ----------- Power Improved Deuterium Engine Engine Improved Deuterium Engine Power Core Fission Core Reactor Quantum Reactor Propulsion Armored Huge Wheel Treads Centrium Heavy Treads Leg Aluminum Leg Wheel Armored Huge Wheel Hover Unit Combat Linear Gravjet Utility Advanced Targeting Computer Device Cooling System Storage Huge Storage Unit Processor Advanced Targeting Computer Hackware Hacking Suite Protection Hardened Heavy Armor Plating Weapon Heavy Plasma Cannon Energy Gun Particle Gun Energy Cannon Heavy Plasma Cannon Ballistic Gun Assault Rifle Launcher Heavy Missile Launcher Build | -11 -10 -10 -9 -9 -9 -8 -8 -8 -7 -7 -7 -7 -6 -6 -6 -6 -5 -4 -4 -3 -2 -1 ------- Run | Yrd Mat Min Mat Min Exi Min Mat Sto Fac Low Low Zio Pro Fac Ext Cet Fac Fac DSF Res Res Acc Slots Evolved 18 | . . . 2 . . . 2 . 2 . . . . 2 . . 2 2 . 2 2 2 Power 2 | . . . . . . . 1 . . . . . . . . . . . . . 1 . Propulsion 4 | . . . . . . . . . . . . . . . . . 2 2 . . . . Utility 11 | . . . 2 . . . 1 . 2 . . . . 1 . . . . . 2 1 2 Weapon 1 | . . . . . . . . . . . . . . 1 . . . . . . . . Parts Attached 181 | 7 10 4 20 . . 2 11 17 20 4 1 . 1 10 2 12 4 1 4 10 24 17 Power 31 | 1 1 2 3 . . . 2 4 6 . . . . 2 . 2 . . . . 5 3 Engine 16 | 1 . 2 3 . . . 2 2 6 . . . . . . . . . . . . . Core 5 | . 1 . . . . . . 2 . . . . . 2 . . . . . . . . Reactor 10 | . . . . . . . . . . . . . . . . 2 . . . . 5 3 Propulsion 38 | 2 2 1 5 . . . 2 2 1 . . . 1 . . 3 . 1 . 2 7 9 Treads 15 | . . . . . . . 2 . . . . . . . . 3 . 1 . 2 7 . Leg 2 | . 2 . . . . . . . . . . . . . . . . . . . . . Wheel 12 | 2 . 1 5 . . . . 2 1 . . . 1 . . . . . . . . . Hover 9 | . . . . . . . . . . . . . . . . . . . . . . 9 Flight . | . . . . . . . . . . . . . . . . . . . . . . . Utility 68 | 1 3 . 10 . . . 5 4 8 3 . . . 6 2 4 2 . 3 5 9 3 Device 32 | . 2 . 4 . . . . . 3 3 . . . 2 1 3 . . 3 1 8 2 Storage 5 | 1 1 . 1 . . . . 1 . . . . . . 1 . . . . . . . Processor 5 | . . . . . . . 2 . . . . . . 2 . . . . . . . 1 Hackware 7 | . . . . . . . 1 . 2 . . . . . . . 2 . . 2 . . Protection 19 | . . . 5 . . . 2 3 3 . . . . 2 . 1 . . . 2 1 . Artifact . | . . . . . . . . . . . . . . . . . . . . . . . Weapon 44 | 3 4 1 2 . . 2 2 7 5 1 1 . . 2 . 3 2 . 1 3 3 2 Energy Gun 10 | 2 3 1 . . . . . 4 . . . . . . . . . . . . . . Energy Cannon 27 | . . . 2 . . 1 2 2 4 1 . . . 2 . 3 2 . 1 3 3 1 Ballistic Gun 2 | 1 1 . . . . . . . . . . . . . . . . . . . . . Ballistic Cannon . | . . . . . . . . . . . . . . . . . . . . . . . Launcher 5 | . . . . . . 1 . 1 1 . 1 . . . . . . . . . . 1 Special Weapon . | . . . . . . . . . . . . . . . . . . . . . . . Impact Weapon . | . . . . . . . . . . . . . . . . . . . . . . . Slashing Weapon . | . . . . . . . . . . . . . . . . . . . . . . . Piercing Weapon . | . . . . . . . . . . . . . . . . . . . . . . . Special Melee Weapon . | . . . . . . . . . . . . . . . . . . . . . . . Unidentified Prototypes 14 | . 1 . 1 . . . 1 5 . . . . . . . 1 1 . . 1 1 2 Corrupted Parts 5 | . . . . . . . . . . . . . . . . 5 . . . . . . System Corruption 24 | . . . . . . . . . . . . . . . . 24 . . . . . . Parts Lost 60 | . 4 3 6 . . 3 2 7 2 1 . . 1 1 . 3 . . 1 1 22 3 Power 10 | . . 2 1 . . . 1 1 1 . . . . . . . . . . . 4 . Propulsion 13 | . 2 1 3 . . . . 2 . . . . 1 . . . . . . . 3 1 Utility 26 | . 1 . 2 . . 2 . 2 1 1 . . . 1 . 3 . . . 1 11 1 Weapon 11 | . 1 . . . . 1 1 2 . . . . . . . . . . 1 . 4 1 Highest Loss Streak 10 | . 2 2 3 . . 3 1 2 1 1 . . 1 1 . 3 . . 1 1 10 3 To Critical Strikes . | . . . . . . . . . . . . . . . . . . . . . . . Average Backups 20 | . 12 14 14 15 15 15 19 21 21 21 21 22 21 23 24 22 22 22 23 22 21 9 Power 1 | . 1 1 1 2 2 2 1 2 1 1 1 1 1 1 1 1 2 2 2 2 2 1 Propulsion 2 | . 3 4 2 3 3 3 4 2 2 2 2 2 1 1 2 2 2 1 1 2 2 2 Utility 9 | . 3 4 3 3 3 4 6 10 10 8 8 9 9 12 14 11 12 13 14 11 9 2 Weapon 6 | . 2 4 6 7 7 6 7 6 7 9 9 10 10 8 7 7 6 6 5 4 6 2 Tool/Special . | . . . . . . . . . . . . . . . . . . . . . . . Unused Backups 57 | . 5 1 7 . . . 2 5 5 . . 1 . 8 . 3 2 . 2 4 . 12 Power 4 | . . . 2 . . . . . . . . . . 1 . . . . . 1 . . Propulsion 15 | . 4 . 1 . . . . 1 . . . . . 1 . 1 . . . . . 7 Utility 22 | . . . . . . . . 4 3 . . 1 . 2 . 2 2 . 2 3 . 3 Weapon 16 | . 1 1 4 . . . 2 . 2 . . . . 4 . . . . . . . 2 Tool/Special . | . . . . . . . . . . . . . . . . . . . . . . . Average Slot Usage (%) 87 | . 99 99 97 100 100 77 96 99 89 83 84 84 84 85 86 84 81 78 78 83 84 65 Engine 7 | . 9 7 10 11 11 11 16 13 12 15 15 15 15 5 . . . . . . . . Core 2 | . 4 5 . . . . . 4 1 . . . . 7 13 10 . . . . . . Reactor 3 | . . . . . . . . . . . . . . . . 2 11 10 10 9 12 10 Treads 3 | . . . . . . . . . . . . . . . . 1 10 15 15 14 12 5 Leg 2 | . 24 19 1 . . . . . . . . . . . . . . . . . . . Wheel 6 | . 3 7 19 22 22 22 17 17 7 7 7 7 7 6 6 4 . . . . . . Device 15 | . 13 14 17 11 11 11 9 9 13 15 15 15 15 13 13 20 11 10 10 18 26 17 Storage 7 | . 14 14 11 11 11 11 9 9 7 7 7 7 7 6 6 6 5 5 5 4 4 1 Processor 6 | . . . . . . . 10 9 7 7 7 7 7 11 13 6 5 5 5 4 3 3 Hackware 6 | . . . . . . . 8 9 12 7 7 7 7 6 6 4 10 10 10 9 6 4 Protection 6 | . . . 14 22 22 . 6 8 8 7 7 7 7 6 6 6 5 5 5 7 4 . Energy Gun 2 | . 18 28 5 . . . . . . . . . . . . . . . . . . . Energy Cannon 14 | . . . 16 22 22 20 17 17 14 14 14 15 15 19 20 18 17 15 15 14 12 8 Peak Build Rating 176 | 6 12 12 22 21 22 22 33 37 60 59 57 57 57 70 72 91 110 125 129 152 176 145 Average Rating 72 | 4 9 10 17 21 21 19 30 33 49 56 56 57 56 67 70 74 108 125 126 146 168 129 On Entrance 55 | . 6 12 10 21 21 22 20 32 31 56 56 57 57 56 70 70 91 109 125 129 148 85 Avg Prop Armor Cover (%) 8 | . . 9 8 . . . 10 . . . . . . . . . . . 6 . 26 2 Naked Turns . | . . . . . . . . . . . . . . . . . . . . . . . Heaviest Build 221 | 12 31 31 68 68 68 62 72 114 150 150 143 143 143 160 155 174 174 173 174 190 221 178 Greatest Support 240 | 26 26 20 24 24 24 24 46 24 28 28 28 28 28 28 28 80 160 240 240 240 225 210 Greatest Overweight (x) 12 | . 4 3 3 2 2 2 5 5 12 5 5 5 5 5 5 5 1 . 1 . 1 1 Average Overweight (x) 2 | . . 2 1 2 2 2 2 3 4 4 5 5 5 5 5 4 1 . . . . . Largest Inventory Capacity 25 | 8 15 15 20 20 20 20 20 25 25 25 25 25 25 25 25 25 25 25 25 25 25 25 Average Capacity 22 | 7 13 15 15 20 20 20 20 24 25 25 25 25 25 25 25 25 25 25 25 25 25 14 Most Carried 25 | 1 15 15 15 15 16 16 20 25 25 25 25 25 25 25 25 25 25 24 25 25 25 19 Average Carried 21 | . 12 14 14 15 15 15 19 23 24 24 24 25 24 24 24 24 24 23 24 24 24 9 Final Capacity 25 | 8 15 15 20 20 20 20 20 25 25 25 25 25 25 25 25 25 25 25 25 25 25 5 Final Carried 25 | 1 15 14 15 15 16 16 20 23 25 23 25 25 23 25 25 24 25 24 25 25 16 5 Class Distribution -------------------- 40% | Mutant 16% | Scavenger-Tank 13% | Gunner 9% | Scavenger-Mutant 7% | Hacker-Mutant 3% | Hacker-Tank 3% | Scientist-Tank Dominant Class ---------------- Mutant | -10/Materials Scavenger-Mutant | -10/Mines Scavenger-Mutant | -9/Materials Mutant | -9/Mines Mutant | -9/Exiles Mutant | -8/Mines Mutant | -8/Materials Mutant | -8/Storage Hacker-Mutant | -7/Factory Mutant | -7/Lower Caves Mutant | -7/Lower Caves Mutant | -7/Zion Mutant | -6/Proximity Caves Gunner | -6/Factory Gunner | -6/Extension Tank | -6/Cetus Scavenger-Tank | -5/Factory Scavenger-Tank | -4/Factory Scavenger-Tank | -4/DSF Scavenger-Tank | -3/Research Hacker-Tank | -2/Research Scientist-Tank | -1/Access Resources | -11 -10 -10 -9 -9 -9 -8 -8 -8 -7 -7 -7 -7 -6 -6 -6 -6 -5 -4 -4 -3 -2 -1 ----------- Run | Yrd Mat Min Mat Min Exi Min Mat Sto Fac Low Low Zio Pro Fac Ext Cet Fac Fac DSF Res Res Acc Matter Collected 3277 | 160 373 40 185 . . 95 162 360 404 82 95 . 6 175 40 140 86 . 50 150 473 201 Remotely . | . . . . . . . . . . . . . . . . . . . . . . . Salvage Created 12787 | . 606 183 1405 78 . 145 466 1299 1349 160 36 . . 465 838 301 207 . 509 . 4359 381 Parts 643 | . 40 8 73 3 . 7 30 77 84 10 2 . . 30 29 14 7 . 18 . 181 30 Haulers Intercepted 9 | . 2 . 3 . . . . 4 . . . . . . . . . . . . . . Recyclers Shooed 3 | . . . 2 . . . . . . . . . . . . . . . . . . 1 Parts Field Recycled . | . . . . . . . . . . . . . . . . . . . . . . . Retrieved Matter . | . . . . . . . . . . . . . . . . . . . . . . . Parts Self-Destructed 28 | . . . . . . . . . . 19 1 1 7 . . . . . . . . . Prevented 4 | . . . . . . . . . . . . . 4 . . . . . . . . . Parts Restored . | . . . . . . . . . . . . . . . . . . . . . . . Kills | -11 -10 -10 -9 -9 -9 -8 -8 -8 -7 -7 -7 -7 -6 -6 -6 -6 -5 -4 -4 -3 -2 -1 ------- Run | Yrd Mat Min Mat Min Exi Min Mat Sto Fac Low Low Zio Pro Fac Ext Cet Fac Fac DSF Res Res Acc Combat Hostiles Destroyed 237 | . 14 4 26 2 . 10 13 22 33 3 3 . . 8 16 4 3 . 5 . 55 16 Guns 24 | . 14 4 6 . . . . . . . . . . . . . . . . . . . Cannons 156 | . . . 20 2 . 3 8 19 23 2 1 . . 4 12 3 1 . 5 . 48 5 AOE 40 | . . . . . . 7 5 3 10 . 2 . . 3 . . . . . . . 10 Classes Destroyed 21 | . 7 . 4 . . . 2 1 2 2 . . . . . . . . . . 3 . Worker 10 | . 2 1 . . . . . . 5 . . . . 1 . . . . . . . 1 Builder 7 | . . . 1 . . . 1 1 2 . . . . . . . 1 . . . 1 . Tunneler 1 | . 1 . . . . . . . . . . . . . . . . . . . . . Hauler 9 | . 2 . 3 . . . . 4 . . . . . . . . . . . . . . Recycler 4 | . . . . . . . 1 . 1 . . . . 1 . . . . . . 1 . Mechanic 3 | . . . 1 . . . . 1 1 . . . . . . . . . . . . . Operator 3 | . 1 . 1 . . . . 1 . . . . . . . . . . . . . . Watcher 8 | . 1 . . . . . 2 . 3 . . . . 1 1 . . . . . . . Swarmer 52 | . 6 1 . . . 7 6 . 11 . 2 . . 3 3 . . . . . . 13 Saboteur 1 | . . . . . . . . . . . . . . . . . . . . . 1 . Grunt 82 | . 8 3 18 2 . 3 2 12 13 1 . . . . 6 . . . 4 . 10 . Brawler 1 | . . . . . . . . . . . . . . . . . . . . . 1 . Duelist 4 | . . . 1 . . . 1 . . . . . . . . . . . . . 2 . Protector 1 | . . . . . . . . . . . . . . . . . . . . . 1 . Sentry 36 | . . . 7 . . . 3 8 1 . 1 . . 2 5 . 2 . . . 7 . Specialist 2 | . . . . . . . . . 2 . . . . . . . . . . . . . Hunter 12 | . . . . . . . . 2 1 . . . . . . . . . . . 9 . Programmer 36 | . . . . . . . . . 5 . . . . 3 . . 1 . . . 24 3 Heavy 2 | . . . . . . . 1 . . . . . . . . . . . 1 . . . Behemoth 3 | . . . . . . . . . . 1 . . . . 2 . . . . . . . Cetus Guard 4 | . . . . . . . . . . . . . . . . 4 . . . . . . Decomposer 1 | . . . . . . . . . . 1 . . . . . . . . . . . . Thief 1 | . . . . . . . . . . 1 . . . . . . . . . . . . Best Kill Streak 13 | . 3 2 3 2 . 5 8 4 13 1 3 . . 4 3 3 1 . 3 . 5 9 Combat Bots Only 9 | . 3 2 3 2 . 5 7 4 7 1 3 . . 3 3 3 1 . 3 . 5 9 Max Kills in Single Turn 3 | . 2 1 2 1 . 3 2 2 3 1 1 . . 3 1 1 1 . 1 . 2 3 Gunslinging 1 | . 1 . . . . . . . . . . . . . . . . . . . . . Exploded 3 | . . . . . . 3 1 2 2 . 1 . . 2 . . . . . . . 3 Melee . | . . . . . . . . . . . . . . . . . . . . . . . Uniques/NPCs Destroyed . | . . . . . . . . . . . . . . . . . . . . . . . Combat | -11 -10 -10 -9 -9 -9 -8 -8 -8 -7 -7 -7 -7 -6 -6 -6 -6 -5 -4 -4 -3 -2 -1 -------- Run | Yrd Mat Min Mat Min Exi Min Mat Sto Fac Low Low Zio Pro Fac Ext Cet Fac Fac DSF Res Res Acc Hostile Shots Fired 1430 | . 78 19 92 5 . 34 79 64 127 19 37 . 13 32 105 31 7 . 23 6 570 89 Missed 404 | . 24 2 16 . . 7 32 22 37 8 14 . 6 12 42 8 2 . 3 2 134 33 Hits 1026 | . 54 17 76 5 . 27 47 42 90 11 23 . 7 20 63 23 5 . 20 4 436 56 Melee 21 | . . . 4 . . . . . . 3 . . . . . . . . . . 14 . Projectile 1005 | . 54 17 72 5 . 27 47 42 90 8 23 . 7 20 63 23 5 . 20 4 422 56 Critical Strikes 35 | . . . 4 . . . . 1 3 . . . . . . 2 . . 2 1 20 2 Actively Blocked 22 | . . . . . . . . . . . . . . . . . . . . . 20 2 Part Disruptions 2 | . . . . . . . . . . . . . . . . . . . 1 . . 1 Damage Taken 17343 | . 542 244 1040 70 . 365 650 863 1197 223 238 . 169 190 844 467 134 . 457 69 8569 1012 Core 1693 | . 103 44 192 11 . 84 96 131 132 . 32 . . 22 46 37 . . . . 580 183 Absorbed by Shields 2052 | . . . . . . . . . 236 . . . . . . 167 . . . 30 1619 . Reduced by Siege Mode 625 | . . . . . . . . . . . . . . . . . . . 20 . 605 . Redirected to Shielding 101 | . . . 8 . . . 67 26 . . . . . . . . . . . . . . Ignored by Resistances 178 | . . . . . . . . . . . . . . . . . . . . . . 178 Core Remaining (%) 76 | 100 . 41 . . . 28 . 58 . . . . 76 . . 87 100 . 100 100 60 88 Volleys Fired 718 | . 60 12 76 3 . 12 52 63 85 8 6 . . 38 43 13 17 . 15 16 149 50 Largest 3 | . 2 2 2 2 . 2 2 2 2 2 1 . . 3 3 3 3 . 3 3 3 2 Hottest 360 | . 105 105 150 150 . 150 150 150 180 180 90 . . 270 270 270 270 . 270 339 360 190 Shots Fired 1401 | . 119 24 143 6 . 18 71 106 133 13 6 . . 64 113 37 33 . 45 25 385 60 Gun 181 | . 119 24 38 . . . . . . . . . . . . . . . . . . . Cannon 1178 | . . . 105 6 . 13 63 102 125 13 1 . . 62 113 37 33 . 45 25 385 50 Launcher 42 | . . . . . . 5 8 4 8 . 5 . . 2 . . . . . . . 10 Special . | . . . . . . . . . . . . . . . . . . . . . . . Kinetic 46 | . 46 . . . . . . . . . . . . . . . . . . . . . Thermal 1313 | . 73 24 143 6 . 13 63 102 125 13 1 . . 62 113 37 33 . 45 25 385 50 Explosive 42 | . . . . . . 5 8 4 8 . 5 . . 2 . . . . . . . 10 Electromagnetic . | . . . . . . . . . . . . . . . . . . . . . . . Robot Hit Streak 62 | . 13 5 7 11 . 16 14 28 21 28 8 . . 13 27 25 18 . 58 62 33 9 Robot Miss Streak 5 | . 4 3 5 . . 3 2 2 2 1 . . . 1 2 1 2 . . 1 2 3 Penetration Max . | . . . . . . . . . . . . . . . . . . . . . . . Secondary Targets 4 | . 3 . 1 . . . . . . . . . . . . . . . . . . . Max Gunslinging Chain 1 | . 1 . 1 . . . . . . . . . . . . . . . . . . . Shots Hit Robots 830 | . 84 13 77 6 . 9 39 67 74 9 6 . . 19 69 31 20 . 40 9 241 17 Core Hits 426 | . 33 10 39 3 . 14 26 44 54 4 4 . . 12 28 11 6 . 15 2 87 34 Critical Kills 17 | . . . . . . . . . . 1 . . . 2 4 1 1 . 1 . 6 1 Critical Parts Destroyed . | . . . . . . . . . . . . . . . . . . . . . . . Critical Strikes 22 | . 1 1 3 . . . . . . 1 . . . 2 4 1 1 . 1 . 6 1 Burn 5 | . 1 1 3 . . . . . . . . . . . . . . . . . . . Meltdown 17 | . . . . . . . . . . 1 . . . 2 4 1 1 . 1 . 6 1 Melee Attacks . | . . . . . . . . . . . . . . . . . . . . . . . Impact . | . . . . . . . . . . . . . . . . . . . . . . . Slashing . | . . . . . . . . . . . . . . . . . . . . . . . Piercing . | . . . . . . . . . . . . . . . . . . . . . . . Sneak Attacks . | . . . . . . . . . . . . . . . . . . . . . . . Combat Hostiles . | . . . . . . . . . . . . . . . . . . . . . . . Follow-up Attacks . | . . . . . . . . . . . . . . . . . . . . . . . Damage Inflicted 31342 | . 1127 185 1917 158 . 766 1611 2038 3789 303 241 . . 811 2230 986 641 . 1295 417 11028 1799 Guns 1719 | . 1127 185 407 . . . . . . . . . . . . . . . . . . . Cannons 24418 | . . . 1510 158 . 231 888 1660 1951 303 31 . . 594 2230 986 641 . 1295 417 10910 613 Explosions 5150 | . . . . . . 535 723 378 1823 . 210 . . 217 . . . . . . 78 1186 Melee . | . . . . . . . . . . . . . . . . . . . . . . . Ramming 55 | . . . . . . . . . 15 . . . . . . . . . . . 40 . Kinetic 361 | . 361 . . . . . . . . . . . . . . . . . . . . . Thermal 26136 | . 766 185 1917 158 . 231 888 1660 2311 303 31 . . 594 2230 986 641 . 1295 417 10910 613 Explosive 4790 | . . . . . . 535 723 378 1463 . 210 . . 217 . . . . . . 78 1186 Electromagnetic . | . . . . . . . . . . . . . . . . . . . . . . . Impact . | . . . . . . . . . . . . . . . . . . . . . . . Slashing . | . . . . . . . . . . . . . . . . . . . . . . . Piercing . | . . . . . . . . . . . . . . . . . . . . . . . Highest Corruption 24 | . . . . . . . . . . . . . . . . 24 . . 1 . 9 3 Average Corruption 4 | . . . . . . . . . . . . . . . . 19 . . 1 . 4 2 Corruption Purged 10 | . . . . . . . . . . . . . . . . . . . . . 10 . Corruption Blocked . | . . . . . . . . . . . . . . . . . . . . . . . Effects 62 | . . . . . . . . . . . . . . . . 5 . . 3 . 45 9 Message Errors 18 | . . . . . . . . . . . . . . . . 1 . . 2 . 12 3 Matter Fused 13 | . . . . . . . . . . . . . . . . 3 . . 1 . 8 1 Heat Flow Errors 8 | . . . . . . . . . . . . . . . . . . . . . 4 4 Energy Discharges 7 | . . . . . . . . . . . . . . . . . . . . . 6 1 Parts Rejected 1 | . . . . . . . . . . . . . . . . . . . . . 1 . Parts Fused 1 | . . . . . . . . . . . . . . . . . . . . . 1 . Data Loss (minor) 5 | . . . . . . . . . . . . . . . . . . . . . 5 . Data Loss (major) 4 | . . . . . . . . . . . . . . . . . . . . . 4 . Misfires 2 | . . . . . . . . . . . . . . . . 1 . . . . 1 . Alerts 2 | . . . . . . . . . . . . . . . . . . . . . 2 . Weapon Failures 1 | . . . . . . . . . . . . . . . . . . . . . 1 . Overload Shots . | . . . . . . . . . . . . . . . . . . . . . . . Overflow Damage 735 | . . . 10 . . 7 40 19 206 . 33 . . 24 12 . 19 . 25 3 322 15 Projectiles 426 | . . . 10 . . . 11 . 31 . 19 . . 24 12 . 19 . 25 3 259 13 Explosions 309 | . . . . . . 7 29 19 175 . 14 . . . . . . . . . 63 2 Melee . | . . . . . . . . . . . . . . . . . . . . . . . Knockbacks . | . . . . . . . . . . . . . . . . . . . . . . . Impact . | . . . . . . . . . . . . . . . . . . . . . . . Kinetic . | . . . . . . . . . . . . . . . . . . . . . . . Secondary . | . . . . . . . . . . . . . . . . . . . . . . . Self-Inflicted Damage 387 | . . . . . . . 15 156 113 . . . . . . . . . . . 103 . Shots 9 | . . . . . . . 2 3 3 . . . . . . . . . . . 1 . Rammed 3 | . . . . . . . . . 1 . . . . . . . . . . . 2 . Targets Rammed 3 | . . . . . . . . . 1 . . . . . . . . . . . 2 . Kicked . | . . . . . . . . . . . . . . . . . . . . . . . Crushed . | . . . . . . . . . . . . . . . . . . . . . . . Highest Temperature 354 | . 1 4 321 147 . 195 81 293 345 93 . . . 180 337 335 157 . 63 237 354 174 Average Temperature 71 | . 1 2 89 85 . 70 22 57 66 42 . . . 76 95 165 71 . 12 110 67 49 Received Heat Transfer 3026 | . 204 126 489 39 . 162 117 279 157 24 36 . 45 18 195 13 27 . 75 52 959 9 Effects 7 | . . . . . . . . . . . . . . . . 4 . . . . 3 . Interference 7 | . . . . . . . . . . . . . . . . 4 . . . . 3 . Siege Activations 21 | . . . . . . . . . . . . . . . . . . . 3 . 18 . Total Turns 298 | . . . . . . . . . . . . . . . . . . . 30 . 268 . Longest Duration 42 | . . . . . . . . . . . . . . . . . . . 17 . 42 . Martial Activations . | . . . . . . . . . . . . . . . . . . . . . . . Shielding Activations . | . . . . . . . . . . . . . . . . . . . . . . . Robots Disrupted . | . . . . . . . . . . . . . . . . . . . . . . . Combat Hostiles . | . . . . . . . . . . . . . . . . . . . . . . . Robots Corrupted . | . . . . . . . . . . . . . . . . . . . . . . . Combat Hostiles . | . . . . . . . . . . . . . . . . . . . . . . . Parts Fried 1 | . . . . . . . . . . . . . . . . 1 . . . . . . Impact Corruptions . | . . . . . . . . . . . . . . . . . . . . . . . Robots Melted 19 | . . . . . . . . . . 1 . . . 2 4 1 2 . 1 . 7 1 Combat Hostiles 17 | . . . . . . . . . . 1 . . . 1 4 1 2 . . . 7 1 Parts Melted 90 | . 3 2 3 . . 1 2 2 6 2 . . . 5 6 . 3 . 2 . 51 2 Heat Transferred 32199 | . 2051 483 3285 222 . 333 1332 2516 3037 450 50 . . 850 3450 1550 1000 . 1881 333 8784 592 Parts Sabotaged . | . . . . . . . . . . . . . . . . . . . . . . . Parts Stolen 2 | . . . . . . . . . . 2 . . . . . . . . . . . . Parts Stripped . | . . . . . . . . . . . . . . . . . . . . . . . Power Chain Reactions . | . . . . . . . . . . . . . . . . . . . . . . . Alert | -11 -10 -10 -9 -9 -9 -8 -8 -8 -7 -7 -7 -7 -6 -6 -6 -6 -5 -4 -4 -3 -2 -1 ------- Run | Yrd Mat Min Mat Min Exi Min Mat Sto Fac Low Low Zio Pro Fac Ext Cet Fac Fac DSF Res Res Acc Maximum Alert Level 4 | . . . 2 1 . . 2 1 3 . . . . . 1 . . . 1 . 4 3 Low Security (%) 66 | 100 100 100 72 87 . 100 66 91 24 . . . . 100 59 100 100 100 45 100 20 . Level 1 15 | . . . 22 12 . . 19 8 46 . . . . . 40 . . . 54 . 15 . Level 2 7 | . . . 4 . . . 14 . 11 . . . . . . . . . . . 28 25 Level 3 9 | . . . . . . . . . 18 . . . . . . . . . . . 28 74 Level 4 . | . . . . . . . . . . . . . . . . . . . . . 7 . Level 5 . | . . . . . . . . . . . . . . . . . . . . . . . High Security . | . . . . . . . . . . . . . . . . . . . . . . . Max Security . | . . . . . . . . . . . . . . . . . . . . . . . Sterilizations 1 | . . . . . . . . . . . . . . . . . . . 1 . . . Peak Influence 1126 | . 96 72 439 216 . 188 432 271 841 . . . . 84 334 148 180 51 262 149 1126 1016 Initial 596 | . . 15 9 166 . . 61 178 73 . . . . . . 128 42 51 7 147 16 596 Average 213 | . 29 16 136 153 . 69 129 96 350 . . . . 13 160 87 66 31 180 24 553 798 Influence Increases 10573 | . 452 176 973 50 . 314 702 872 1321 50 60 . 202 329 865 285 727 . 305 119 1917 854 Destroy 0b10 Robot/C 5360 | . 280 120 520 40 . 200 260 440 660 40 60 . 120 160 500 160 220 . 180 . 1080 320 Destroy 0b10 Robot/NC 270 | . 35 5 30 . . . 20 35 60 . . . . 15 15 10 15 . 10 . 15 5 Destroy Leader 1136 | . 66 30 156 10 . 30 74 148 156 10 . . 20 52 62 . 52 . 20 . 210 40 Allied During Kill 502 | . . 6 . . . . . . . . . . 47 . 41 103 224 . 81 . . . Successful Hack 456 | . 9 . 19 . . . 10 20 63 . . . . 38 6 . 80 . . 91 66 54 Select Force Hacks 150 | . 30 . 30 . . . 30 60 . . . . . . . . . . . . . . Disable Machine 615 | . 15 15 75 . . 15 45 90 195 . . . . . 30 . 30 . . . 75 30 Destroy Structure 1274 | . 2 . 38 . . 39 68 64 127 . . . . 49 61 12 106 . 14 28 396 270 Partial Spotted 75 | . . . 15 . . . . . . . . . . 15 . . . . . . 30 15 Lose Combat Pursuer 735 | . 15 . 90 . . 30 195 15 60 . . . 15 . 150 . . . . . 45 120 Influence Decreases 9557 | . 411 193 570 391 86 156 437 1133 653 776 164 . 202 329 634 439 697 96 54 351 952 833 Entered New Map 1874 | . . 26 15 261 86 . 97 245 89 308 21 . . . . 103 35 56 4 115 14 399 Time Decay 5909 | . 367 157 409 130 . 141 320 518 544 458 143 . 137 240 514 206 377 40 . 236 568 404 Lost Part 550 | . 40 10 60 . . 15 20 70 20 10 . . 5 10 . 30 . . 10 . 220 30 Lost Ally 320 | . . . . . . . . . . . . . 60 . 120 100 . . 40 . . . Purge Threat 904 | . 4 . 86 . . . . 300 . . . . . 79 . . 285 . . . 150 . Squads Dispatched 79 | . 4 . 7 . . . 6 4 11 . . . . 5 2 . 3 . 1 6 21 9 Investigation 29 | . 3 . 5 . . . 4 3 3 . . . . 1 2 . 1 . . 3 3 1 Extermination 21 | . . . . . . . . . 4 . . . . 4 . . 2 . . . 8 3 Reinforcement 17 | . 1 . 2 . . . 2 1 3 . . . . . . . . . 1 3 2 2 Assault 9 | . . . . . . . . . 1 . . . . . . . . . . . 5 3 Garrison 3 | . . . . . . . . . . . . . . . . . . . . . 3 . Intercept . | . . . . . . . . . . . . . . . . . . . . . . . Searches Triggered . | . . . . . . . . . . . . . . . . . . . . . . . Construction Impeded 2 | . . . . . . . . . 2 . . . . . . . . . . . . . Haulers Reinforced 2 | . . . . . . . . . . . . . . . . . . . . 1 . 1 Active Scanning Responses . | . . . . . . . . . . . . . . . . . . . . . . . Cargo Convoy Interrupts . | . . . . . . . . . . . . . . . . . . . . . . . Stealth | -11 -10 -10 -9 -9 -9 -8 -8 -8 -7 -7 -7 -7 -6 -6 -6 -6 -5 -4 -4 -3 -2 -1 --------- Run | Yrd Mat Min Mat Min Exi Min Mat Sto Fac Low Low Zio Pro Fac Ext Cet Fac Fac DSF Res Res Acc Distress Signals 30 | . 2 . 4 1 . . 4 5 . . . . . . 1 2 . . . 2 7 2 Communications Jammed 89 | . . . . . . . . . 1 . . . . 22 . . . . . . 66 . Distress Signals 87 | . . . . . . . . . 1 . . . . 22 . . . . . . 64 . Times Spotted 400 | . 21 6 46 2 . 10 24 30 42 4 3 . 7 10 35 10 8 . 9 10 90 33 Peak Tracking Total 17 | . 4 3 6 2 . 7 8 7 4 2 3 . 3 3 3 5 2 . 4 5 17 9 Tactical Retreats 34 | . 1 . 5 . . 1 5 1 4 . . . 1 . 8 . . . . . 3 5 ECM-based Alert Blocks 3 | . . . . . . . . . . . . . . . . . . . . . . 3 Traps | -11 -10 -10 -9 -9 -9 -8 -8 -8 -7 -7 -7 -7 -6 -6 -6 -6 -5 -4 -4 -3 -2 -1 ------- Run | Yrd Mat Min Mat Min Exi Min Mat Sto Fac Low Low Zio Pro Fac Ext Cet Fac Fac DSF Res Res Acc Traps Triggered 15 | . 2 . 1 . . . 1 3 1 . . . . . 2 . 1 . 1 . 2 1 Indirectly . | . . . . . . . . . . . . . . . . . . . . . . . Trap Hack Attempts . | . . . . . . . . . . . . . . . . . . . . . . . Triggered . | . . . . . . . . . . . . . . . . . . . . . . . Disarmed . | . . . . . . . . . . . . . . . . . . . . . . . Reprogrammed . | . . . . . . . . . . . . . . . . . . . . . . . Reused . | . . . . . . . . . . . . . . . . . . . . . . . Traps Extracted . | . . . . . . . . . . . . . . . . . . . . . . . Installed . | . . . . . . . . . . . . . . . . . . . . . . . Triggered . | . . . . . . . . . . . . . . . . . . . . . . . Machines | -11 -10 -10 -9 -9 -9 -8 -8 -8 -7 -7 -7 -7 -6 -6 -6 -6 -5 -4 -4 -3 -2 -1 ---------- Run | Yrd Mat Min Mat Min Exi Min Mat Sto Fac Low Low Zio Pro Fac Ext Cet Fac Fac DSF Res Res Acc Machines Disabled 43 | . 1 1 5 . . 1 3 6 13 . . . . . 4 . 2 . . . 5 2 Max in Single Turn 4 | . 1 1 1 . . 1 1 1 4 . . . . . 1 . 2 . . . 1 1 Garrison Access 3 | . . . . . . . . . 1 . . . . . . . . . . 1 . 1 Energy Cycler 2 | . . . . . . . . . . . . . . . 1 . . . . . . 1 Machines Repaired . | . . . . . . . . . . . . . . . . . . . . . . . Machines Dismantled . | . . . . . . . . . . . . . . . . . . . . . . . Machines Sabotaged . | . . . . . . . . . . . . . . . . . . . . . . . Overloaded Fab Kills . | . . . . . . . . . . . . . . . . . . . . . . . Hacking | -11 -10 -10 -9 -9 -9 -8 -8 -8 -7 -7 -7 -7 -6 -6 -6 -6 -5 -4 -4 -3 -2 -1 --------- Run | Yrd Mat Min Mat Min Exi Min Mat Sto Fac Low Low Zio Pro Fac Ext Cet Fac Fac DSF Res Res Acc Machines Accessed 100 | . 6 . 9 . 2 . 7 13 11 . 1 . . 11 5 2 7 1 . 8 9 8 Terminals 60 | . 5 . 6 . . . 4 11 5 . . . . 7 4 2 4 1 . 1 5 5 Fabricators 8 | . . . . . . . . . 3 . . . . 1 . . 1 . . 2 1 . Repair Stations . | . . . . . . . . . . . . . . . . . . . . . . . Recycling Units 12 | . 1 . 1 . . . 2 2 1 . . . . 1 1 . . . . 2 1 . Scanalyzers 11 | . . . 2 . . . 1 . 1 . . . . 1 . . 2 . . 2 1 1 Garrison Access 6 | . . . . . . . . . 1 . . . . 1 . . . . . 1 1 2 Total Hacks 252 | . 21 . 24 . 24 . 17 28 26 . 1 . . 24 13 4 23 2 . 15 18 12 Successful 144 | . 13 . 13 . 24 . 9 15 18 . 1 . . 12 1 . 14 1 . 9 10 4 Failed 106 | . 8 . 10 . . . 8 13 8 . . . . 11 12 4 9 1 . 6 8 8 Catastrophic 26 | . . . 2 . . . 2 2 3 . . . . 2 3 1 2 . . 2 4 3 Database Lockouts 2 | . . . 1 . . . . . . . . . . 1 . . . . . . . . Manual 107 | . 17 . 10 . 1 . 14 12 13 . . . . 14 4 1 8 . . . 10 3 Terminals 160 | . 20 . 20 . . . 11 26 16 . . . . 16 9 4 14 2 . 1 12 9 Fabricators 16 | . . . . . . . . . 6 . . . . 2 . . 2 . . 4 2 . Repair Stations . | . . . . . . . . . . . . . . . . . . . . . . . Recycling Units 17 | . 1 . 1 . . . 3 2 1 . . . . 2 4 . . . . 2 1 . Scanalyzers 28 | . . . 3 . . . 3 . 2 . . . . 3 . . 7 . . 7 2 1 Garrison Access 6 | . . . . . . . . . 1 . . . . 1 . . . . . 1 1 2 Terminal Hacks 75 | . 8 . 6 . 24 . 1 10 7 . 1 . . 4 1 . 7 1 . 1 3 1 Record 24 | . . . . . 23 . . . . . . . . 1 . . . . . . . . Part Schematic 4 | . . . . . . . . 1 . . . . . . . . 2 . . 1 . . Robot Analysis 9 | . 5 . 2 . . . . 2 . . . . . . . . . . . . . . Prototype ID Bank 2 | . 1 . . . . . . 1 . . . . . . . . . . . . . . Open Door 7 | . . . . . . . . 3 . . 1 . . 1 1 . . . . . . 1 Open DSF 1 | . . . . . . . . . . . . . . . . . . 1 . . . . Level Access Points 1 | . . . . . . . . . . . . . . . . . . . . . 1 . Branch Access Points 5 | . . . . . . . 1 . 1 . . . . 1 . . 1 . . . 1 . Terminal Index 1 | . . . . . . . . . 1 . . . . . . . . . . . . . Fabricator Index 1 | . . . . . . . . . 1 . . . . . . . . . . . . . Recycling Unit Index 1 | . 1 . . . . . . . . . . . . . . . . . . . . . Scanalyzer Index 2 | . . . 1 . . . . . 1 . . . . . . . . . . . . . Unreport Threat 9 | . 1 . 1 . . . . 2 . . . . . 1 . . 3 . . . 1 . Locate Traps 1 | . . . . . . . . . . . . . . . . . 1 . . . . . Hauler Manifests 1 | . . . . . . . . 1 . . . . . . . . . . . . . . Zone Layout 5 | . . . 2 . . . . . 3 . . . . . . . . . . . . . Proto ID Catalog 1 | . . . . . 1 . . . . . . . . . . . . . . . . . Fabricator Hacks 10 | . . . . . . . . . 4 . . . . 1 . . . . . 3 2 . Load Schematic 6 | . . . . . . . . . 2 . . . . 1 . . . . . 2 1 . Build 4 | . . . . . . . . . 2 . . . . . . . . . . 1 1 . Repair Station Hacks . | . . . . . . . . . . . . . . . . . . . . . . . Recycling Unit Hacks 2 | . . . . . . . . . 1 . . . . 1 . . . . . . . . Retrieve Components 2 | . . . . . . . . . 1 . . . . 1 . . . . . . . . Scanalyzer 19 | . . . 2 . . . 3 . 1 . . . . 2 . . 4 . . 4 2 1 Insert Component 2 | . . . . . . . 1 . . . . . . . . . 1 . . . . . Analyze 3 | . . . . . . . 1 . . . . . . . . . 2 . . . . . Retrieve Study 14 | . . . 2 . . . 1 . 1 . . . . 2 . . 1 . . 4 2 1 Garrison Access Hacks 3 | . . . . . . . . . 1 . . . . . . . . . . 1 . 1 Seal Access 3 | . . . . . . . . . 1 . . . . . . . . . . 1 . 1 Unauthorized Hacks 35 | . 5 . 5 . . . 5 5 4 . . . . 4 . . 3 . . . 3 1 Terminals 28 | . 4 . 4 . . . 4 3 3 . . . . 3 . . 3 . . . 3 1 Assimilate 2 | . . . 1 . . . . . . . . . . . . . . . . . . 1 Botnet 26 | . 4 . 3 . . . 4 3 3 . . . . 3 . . 3 . . . 3 . Fabricators 2 | . . . . . . . . . 1 . . . . 1 . . . . . . . . Recompile 2 | . . . . . . . . . 1 . . . . 1 . . . . . . . . Repair Stations . | . . . . . . . . . . . . . . . . . . . . . . . Recycling Units 5 | . 1 . 1 . . . 1 2 . . . . . . . . . . . . . . Tunnel 5 | . 1 . 1 . . . 1 2 . . . . . . . . . . . . . . Scanalyzers . | . . . . . . . . . . . . . . . . . . . . . . . Garrison Access . | . . . . . . . . . . . . . . . . . . . . . . . Data Cores Recovered 1 | . . . . . . . . . . . . . . . . . 1 . . . . . Used . | . . . . . . . . . . . . . . . . . . . . . . . Hacking Detections 74 | . 5 . 7 . . . 6 9 7 . . . . 8 5 2 7 . . 5 8 5 Full Trace Events 13 | . 1 . 3 . . . 2 . 2 . . . . . 1 . 1 . . . 2 1 Feedback Events . | . . . . . . . . . . . . . . . . . . . . . . . Feedback Blocked 1 | . . . . . . . . . . . . . . . . . . . . . 1 . Robot Schematics Acquired 3 | . . . . . . . . . . . . 3 . . . . . . . . . . Robots Built . | . . . . . . . . . . . . . . . . . . . . . . . Authchips . | . . . . . . . . . . . . . . . . . . . . . . . Time . | . . . . . . . . . . . . . . . . . . . . . . . Total Robot Build Rating . | . . . . . . . . . . . . . . . . . . . . . . . Part Schematics Acquired 21 | . . . . . . . 1 1 . . . 15 . . . . 3 . . 1 . . Parts Built 8 | . . . . . . . . . 4 . . . . . . . . . . 2 2 . Authchips 2 | . . . . . . . . . 1 . . . . . . . . . . 1 . . Time 205 | . . . . . . . . . 94 . . . . . . . . . . 42 69 . Total Part Build Rating 54 | . . . . . . . . . 20 . . . . . . . . . . 16 18 . Part Studies Acquired 14 | . . . 2 . . . 1 . 1 . . . . 2 . . 1 . . 4 2 1 Parts Repaired . | . . . . . . . . . . . . . . . . . . . . . . . Time . | . . . . . . . . . . . . . . . . . . . . . . . Parts Recycled . | . . . . . . . . . . . . . . . . . . . . . . . Recycled Matter . | . . . . . . . . . . . . . . . . . . . . . . . Retrieved Matter . | . . . . . . . . . . . . . . . . . . . . . . . Retrieved Components 9 | . . . . . . . . . 7 . . . . 2 . . . . . . . . Parts Scanalyzed 2 | . . . . . . . 1 . . . . . . . . . 1 . . . . . Part Schematics Acquired 2 | . . . . . . . 1 . . . . . . . . . 1 . . . . . Parts Damaged . | . . . . . . . . . . . . . . . . . . . . . . . Bothacking | -11 -10 -10 -9 -9 -9 -8 -8 -8 -7 -7 -7 -7 -6 -6 -6 -6 -5 -4 -4 -3 -2 -1 ------------ Run | Yrd Mat Min Mat Min Exi Min Mat Sto Fac Low Low Zio Pro Fac Ext Cet Fac Fac DSF Res Res Acc Used RIF Installer . | . . . . . . . . . . . . . . . . . . . . . . . Robots Hacked . | . . . . . . . . . . . . . . . . . . . . . . . Non-combat . | . . . . . . . . . . . . . . . . . . . . . . . Combat . | . . . . . . . . . . . . . . . . . . . . . . . Robot Hacks Applied . | . . . . . . . . . . . . . . . . . . . . . . . Relay Couplers Released . | . . . . . . . . . . . . . . . . . . . . . . . Fabnet Peak Effective % . | . . . . . . . . . . . . . . . . . . . . . . . Robots Rewired 7 | . . . . . . . . . . . . . . . 7 . . . . . . . Allies Hacked . | . . . . . . . . . . . . . . . . . . . . . . . Hacks Repelled . | . . . . . . . . . . . . . . . . . . . . . . . Allies | -11 -10 -10 -9 -9 -9 -8 -8 -8 -7 -7 -7 -7 -6 -6 -6 -6 -5 -4 -4 -3 -2 -1 -------- Run | Yrd Mat Min Mat Min Exi Min Mat Sto Fac Low Low Zio Pro Fac Ext Cet Fac Fac DSF Res Res Acc Total Allies 22 | . . 1 . . . . . . . . . 5 . . 11 5 . . . . . . Largest Group 6 | . . 1 . . . . . . . . . 5 5 . 5 6 5 3 3 1 . . Highest-Rated Group 555 | . . 31 . . . . . . . . . 135 135 . 258 555 459 288 288 96 . . Highest-Rated Ally 151 | . . 31 . . . . . . . . . 51 51 . 151 151 151 96 96 96 . . Initial Warlord ECA Mod 9 | . . . . . . . . . . . . . . . . . . . . 9 8 7 Total Orders 3 | . . . . . . . . . . . . . . . 2 . . . . 1 . . STAY 2 | . . . . . . . . . . . . . . . 1 . . . . 1 . . FOLLOW 1 | . . . . . . . . . . . . . . . 1 . . . . . . . Ally Attacks 251 | . . 8 . . . . . . . . . . 34 . 99 50 31 . 29 . . . Total Damage 5742 | . . 148 . . . . . . . . . . 638 . 1418 1243 1321 . 974 . . . Kills 40 | . . 2 . . . . . . . . . . 7 . 11 6 10 . 4 . . . Allies Corrupted . | . . . . . . . . . . . . . . . . . . . . . . . Allies Melted 1 | . . . . . . . . . . . . . 1 . . . . . . . . . Intel | -11 -10 -10 -9 -9 -9 -8 -8 -8 -7 -7 -7 -7 -6 -6 -6 -6 -5 -4 -4 -3 -2 -1 ------- Run | Yrd Mat Min Mat Min Exi Min Mat Sto Fac Low Low Zio Pro Fac Ext Cet Fac Fac DSF Res Res Acc Active Infowar (turns) 3401 | . . . 471 . . . 156 . 533 265 . . . 86 . . . . . . 1436 454 Structural 471 | . . . 471 . . . . . . . . . . . . . . . . . . . Machine Analysis 156 | . . . . . . . 156 . . . . . . . . . . . . . . . Cloaking 1536 | . . . . . . . . . 351 3 . . . . . . . . . . 772 410 Jamming 1194 | . . . . . . . . . 182 262 . . . 86 . . . . . . 664 . ECM 61 | . . . . . . . . . . 16 . . . . . . . . . . . 45 Robot Analysis Total 9 | . 5 . 2 . . . . 2 . . . . . . . . . . . . . . Derelict Logs Recovered 3 | . . 1 . . . . . . . . 1 . 1 . . . . . . . . . Drone Launches . | . . . . . . . . . . . . . . . . . . . . . . . Drone Recoveries . | . . . . . . . . . . . . . . . . . . . . . . . Exploration | -11 -10 -10 -9 -9 -9 -8 -8 -8 -7 -7 -7 -7 -6 -6 -6 -6 -5 -4 -4 -3 -2 -1 ------------- Run | Yrd Mat Min Mat Min Exi Min Mat Sto Fac Low Low Zio Pro Fac Ext Cet Fac Fac DSF Res Res Acc Turns Passed 23904 | 57 1478 650 1120 265 235 376 846 1523 2644 1148 542 1763 566 1943 1712 429 1167 94 269 1478 2633 966 Spaces Moved 13182 | 47 708 405 591 213 213 287 516 846 1252 635 300 1005 317 913 869 180 438 58 111 847 1129 1302 Core 7 | 3 4 . . . . . . . . . . . . . . . . . . . . . Treads 2878 | . . . . . . . 1 . . . . . . . . 28 438 58 111 847 1129 266 Legs 761 | . 627 134 . . . . . . . . . . . . . . . . . . . . Wheels 8500 | 44 77 271 591 213 213 287 515 846 1252 635 300 1005 317 913 869 152 . . . . . . Hover 1036 | . . . . . . . . . . . . . . . . . . . . . . 1036 Flight . | . . . . . . . . . . . . . . . . . . . . . . . Fastest Speed 25 | 50 90 125 95 110 110 110 110 110 145 160 175 175 175 165 165 165 240 160 160 155 145 25 Average Speed 148 | 88 170 146 110 110 110 110 111 135 162 173 175 175 175 172 165 185 240 160 170 156 155 60 Slowest Speed 320 | 100 250 190 125 110 110 110 240 150 250 175 175 175 175 175 165 320 240 160 240 160 185 185 Overloaded Moves 58 | . . . . . . . . . . . . . . . . . . . . . . 58 Propulsion Burnouts . | . . . . . . . . . . . . . . . . . . . . . . . Robots Hopped . | . . . . . . . . . . . . . . . . . . . . . . . Potential Cave-ins 6 | . . . . . . . . . . . . . . . . . . . . 2 4 . Cave-ins Triggered . | . . . . . . . . . . . . . . . . . . . . . . . Exploration Rate (%) 52 | 3 83 82 53 31 60 60 57 91 37 78 48 84 56 27 98 68 11 3 90 35 28 33 Regions Visited 22 Branch Regions 11 Pre-discovered Areas 11 | . 1 . 1 . 1 . 1 2 . . 1 3 1 . . . . . . . . . Known Exits Taken 6 | . . . 1 . . . 1 . 1 . . . . 1 . . . 1 . . 1 . Unknown Exits Taken 15 | 1 1 1 . 1 1 1 . 1 . 1 1 1 1 . 1 1 1 . . 1 . . Scrap Searched 11 | . . 1 . . . 1 . . . 3 1 4 1 . . . . . . . . . Spaces Dug 204 | . . . 6 . . . 15 11 33 . . . . 32 . . 10 . . 14 64 19 Terrain Destroyed 795 | . . . 32 . . 49 78 79 155 4 5 . . 55 29 3 51 . . 16 146 93 Melee . | . . . . . . . . . . . . . . . . . . . . . . . Projectile 361 | . . . 32 . . 2 22 20 38 4 . . . 42 29 3 12 . . 16 117 24 AOE 434 | . . . . . . 47 56 59 117 . 5 . . 13 . . 39 . . . 29 69 Terrain Rammed . | . . . . . . . . . . . . . . . . . . . . . . . Walls Destroyed . | . . . . . . . . . . . . . . . . . . . . . . . Machines Disabled . | . . . . . . . . . . . . . . . . . . . . . . . Actions | -11 -10 -10 -9 -9 -9 -8 -8 -8 -7 -7 -7 -7 -6 -6 -6 -6 -5 -4 -4 -3 -2 -1 --------- Run | Yrd Mat Min Mat Min Exi Min Mat Sto Fac Low Low Zio Pro Fac Ext Cet Fac Fac DSF Res Res Acc Total 16330 | 59 862 438 920 237 213 327 713 1116 1727 666 309 1011 329 1232 1061 255 529 59 167 988 1693 1419 Wait 1788 | 4 49 15 203 22 . 24 101 159 313 18 . 5 12 231 86 25 51 . 24 79 351 16 Move 13159 | 46 707 404 590 212 212 286 515 845 1251 634 299 1004 316 912 868 179 437 57 110 846 1128 1301 Hop . | . . . . . . . . . . . . . . . . . . . . . . . Pick Up 164 | 1 21 2 15 . 1 1 16 9 18 . 2 1 . 17 1 10 7 1 5 14 6 16 Fast Attach 66 | 7 8 . 3 . . . 4 6 8 1 . . . 4 . 1 2 . . 5 7 10 Attach 83 | . 3 3 7 . . 1 5 9 6 2 . . 1 2 . 10 2 1 1 6 14 10 Detach 11 | . 1 . . . . . 1 2 . . . . . 1 . 2 1 . . 1 1 1 Swap 120 | . 3 1 11 . . 3 9 9 20 3 2 . . 10 3 3 4 . 3 4 29 3 Drop 155 | 1 10 1 15 . . . 10 14 25 . . 1 . 17 2 12 6 . 6 17 6 12 Fire 718 | . 60 12 76 3 . 12 52 63 85 8 6 . . 38 43 13 17 . 15 16 149 50 Melee . | . . . . . . . . . . . . . . . . . . . . . . . Ram 1 | . . . . . . . . . 1 . . . . . . . . . . . . . Kick . | . . . . . . . . . . . . . . . . . . . . . . . Crush 2 | . . . . . . . . . . . . . . . . . . . . . 2 . Escape Stasis 20 | . . . . . . . . . . . . . . . 16 . 2 . 2 . . . Rewire 43 | . . . . . . . . . . . . . . . 42 . . . 1 . . . Trap . | . . . . . . . . . . . . . . . . . . . . . . . Miscellaneous . | . . . . . . . . . . . . . . . . . . . . . . . Route ------- -11/Scrapyard -10/Materials (discovered 5 exits: *Mat x2 / [*Min x2] / [*Sub]) -10/Mines (discovered 2 exits: *Mat x2) -9/Materials (discovered 2 exits: *Mat / *Min) -9/Mines (discovered 3 exits: *Mat x2 / *Exi) -9/Exiles -8/Mines (discovered 2 exits: *Mat x2) -8/Materials (discovered 3 exits: *Fac / *Sto x2) -8/Storage -7/Factory (discovered 3 exits: *Fac / *Low x2) -7/Lower Caves -7/Lower Caves (discovered 2 exits: *Fac / [*Zio]) -7/Zion -6/Proximity Caves -6/Factory (discovered 5 exits: *Fac / Low x2 / *Ext x2) -6/Extension (discovered 2 exits: *Fac / *Cet) -6/Cetus (discovered 2 exits: *Fac / [*Arc]) -5/Factory (discovered 3 exits: *Fac / Upp x2) -4/Factory -4/DSF -3/Research (discovered 2 exits: *Res / *Tes) -2/Research (discovered 5 exits: *Acc x3 / *Qua x2) -1/Access To Epsilon Eridani History --------- Turn | Location | Event 36 | -11/Scrapyard | Discovered new exit (range 16) 58 | -11/Scrapyard | Entered Materials 109 | -10/Materials | Discovered new exit (range 16) 114 | -10/Materials | Discovered new exit (range 7) 314 | -10/Materials | Build established: Mutant 548 | -10/Materials | Discovered new exit (range 7) 658 | -10/Materials | Derelicts attacked the area 1040 | -10/Materials | Discovered new exit (range 12) 1355 | -10/Materials | Build established: Scavenger-Mutant 1515 | -10/Materials | Discovered new exit (range 7) 1536 | -10/Materials | Entered Mines 1543 | -10/Mines | Received a Rocket Launcher from a helpful Derelict 1694 | -10/Mines | Discovered new exit (range 14) 1885 | -10/Mines | Received a Mining Laser from a helpful Derelict 1969 | -10/Mines | Learned location of 1 exit from Materials 2019 | -10/Mines | Discovered new exit (range 7) 2046 | -10/Mines | Core integrity fell below 50% 2118 | -10/Mines | Found a damaged Exp. Sensor Array with a note attached 2186 | -10/Mines | Entered Materials 2186 | -9/Materials | Evolved 2 slots: Utility x2 2187 | -9/Materials | Identified exit to Mines 2383 | -9/Materials | Lost 3 parts (2n1u) 2698 | -9/Materials | Discovered new exit (range 16) 3251 | -9/Materials | Build established: Mutant 3266 | -9/Materials | Central database locked down 3306 | -9/Materials | Entered Mines 3309 | -9/Mines | Core integrity fell below 50% 3318 | -9/Mines | Met a Derelict bent on vengeance 3334 | -9/Mines | Discovered new exit (range 15) 3356 | -9/Mines | Deemed a non-threat by the Exiles lab entrance 3356 | -9/Mines | Discovered new exit (range 5) 3420 | -9/Mines | Assembled infested the area 3493 | -9/Mines | Discovered new exit (range 5) 3571 | -9/Mines | Entered Exiles 3599 | -9/Exiles | Met 8R-AWN 3617 | -9/Exiles | Met EX-HEX 3647 | -9/Exiles | Met EX-BIN 3659 | -9/Exiles | Aligned with FarCom system 3661 | -9/Exiles | Given EX-Vault access code 3686 | -9/Exiles | Opened EX-Vault 3694 | -9/Exiles | Found Cloak of Protection 3717 | -9/Exiles | Warned to stay clear of 0b10 Research branches 3747 | -9/Exiles | Met EX-DEC 3753 | -9/Exiles | Learned location of Zion (-7) 3791 | -9/Exiles | Discovered new exit (range 14) 3806 | -9/Exiles | Left Exiles lab with Cloak of Protection 3806 | -9/Exiles | Entered Mines 3845 | -8/Mines | Lost 3 parts (2u1w) 3888 | -8/Mines | Discovered new exit (range 7) 3903 | -8/Mines | Discovered new exit (range 11) 4182 | -8/Mines | Entered Materials 4182 | -8/Materials | Evolved 2 slots: Power x1, Utility x1 4593 | -8/Materials | Discovered new exit (range 13) 4728 | -8/Materials | Discovered new exit (range 12) 4779 | -8/Materials | Destroyed 7 combat bots 4829 | -8/Materials | Discovered new exit (range 12) 4918 | -8/Materials | Identified exit to Storage 5028 | -8/Materials | Entered Storage 6542 | -8/Storage | Discovered new exit (range 8) 6551 | -8/Storage | Entered Factory 6551 | -7/Factory | Evolved 2 slots: Utility x2 7182 | -7/Factory | Build established: Hacker-Mutant 7412 | -7/Factory | Identified exit to Lower Caves 8118 | -7/Factory | Fabricated Hvy. Plasma Cannon (x2) 8519 | -7/Factory | Discovered new exit (range 8) 8551 | -7/Factory | First assault squad dispatched 8753 | -7/Factory | Destroyed 7 combat bots 9053 | -7/Factory | Fabricated Hvy. Plasma Cannon (x2) 9093 | -7/Factory | Build established: Mutant 9195 | -7/Factory | Entered Lower Caves 9427 | -7/Lower Caves | Spotted B-75 Beast 9468 | -7/Lower Caves | Destroyed B-75 Beast 9704 | -7/Lower Caves | Encountered a Warlord checkpoint 10182 | -7/Lower Caves | Discovered new exit (range 6) 10343 | -7/Lower Caves | Entered another Lower Caves area 10344 | -7/Lower Caves | Encountered a Warlord checkpoint 10399 | -7/Lower Caves | Discovered new exit (range 7) 10501 | -7/Lower Caves | Attracted the attention of an 0b10 checkpoint 10757 | -7/Lower Caves | Discovered new exit (range 5) 10885 | -7/Lower Caves | Entered Zion 10943 | -7/Zion | Gained Derelict followers 11101 | -7/Zion | Discovered new exit (range 13) 11246 | -7/Zion | Learned location of Data Miner (-6) 11568 | -7/Zion | Learned location of Warlord (-5) 11619 | -7/Zion | Given the Hacking Drone Bay 11784 | -7/Zion | Given A8's code to call for help 12386 | -7/Zion | Rebuked by Imprinter 12648 | -7/Zion | Entered Proximity Caves 12648 | -6/Proximity Caves | Accompanied by 5 allies 12715 | -6/Proximity Caves | Learned location of Extension (-6) 13095 | -6/Proximity Caves | Lost 3 allies 13098 | -6/Proximity Caves | Spotted B-75 Beast 13203 | -6/Proximity Caves | Discovered new exit (range 7) 13214 | -6/Proximity Caves | Entered Factory 13214 | -6/Factory | Evolved 2 slots: Utility x1, Weapon x1 13801 | -6/Factory | Build established: Gunner 14673 | -6/Factory | Central database locked down 14809 | -6/Factory | Identified exit to Lower Caves 14809 | -6/Factory | Identified exit to Extension 15003 | -6/Factory | Discovered new exit (range 4) 15157 | -6/Factory | Entered Extension 15260 | -6/Extension | Rescued a captive Derelict 16095 | -6/Extension | Spotted B-75 Beast 16101 | -6/Extension | Destroyed B-75 Beast 16117 | -6/Extension | Spotted B-75 Beast 16119 | -6/Extension | Destroyed B-75 Beast 16243 | -6/Extension | Energy Cycler disabled 16246 | -6/Extension | Rescued a captive Derelict 16255 | -6/Extension | Rescued a captive Derelict 16614 | -6/Extension | Discovered new exit (range 10) 16616 | -6/Extension | Discovered new exit (range 6) 16730 | -6/Extension | Rescued A7 16869 | -6/Extension | Entered Cetus 16869 | -6/Cetus | Accompanied by 5 allies (A7) 16874 | -6/Cetus | Acquired a Cetus Manufacturing Module code from A7 16892 | -6/Cetus | Spotted Cetus Guard 16892 | -6/Cetus | Spotted Cetus Guard 16895 | -6/Cetus | Spotted Cetus Guard 16896 | -6/Cetus | Allies destroyed Cetus Guard 16897 | -6/Cetus | Spotted Cetus Guard 16905 | -6/Cetus | Destroyed Cetus Guard 16923 | -6/Cetus | Allies destroyed Cetus Guard 16926 | -6/Cetus | Allies destroyed Cetus Guard 16936 | -6/Cetus | Lost 3 allies 16954 | -6/Cetus | Lost 3 parts (3u) 17012 | -6/Cetus | Started Cetus Manufacturing Module 17037 | -6/Cetus | Manufactured an Enhanced Grunt 17062 | -6/Cetus | Manufactured an Enhanced Grunt 17087 | -6/Cetus | Manufactured an Enhanced Grunt 17100 | -6/Cetus | Discovered new exit (range 15) 17112 | -6/Cetus | Manufactured an Enhanced Grunt 17133 | -6/Cetus | Spotted Cetus Guard 17134 | -6/Cetus | Spotted Cetus Guard 17137 | -6/Cetus | Manufactured an Enhanced Grunt 17137 | -6/Cetus | Spotted Cetus Guard 17138 | -6/Cetus | Spotted Cetus Guard 17139 | -6/Cetus | Destroyed Cetus Guard 17142 | -6/Cetus | Destroyed Cetus Guard 17156 | -6/Cetus | Destroyed Cetus Guard 17171 | -6/Cetus | Allies destroyed Cetus Guard 17180 | -6/Cetus | Discovered new exit (range 16) 17190 | -6/Cetus | Met Revision 17 17206 | -6/Cetus | System corruption reached 10% 17298 | -6/Cetus | Entered Factory 17298 | -5/Factory | Accompanied by 5 allies (A7) 17298 | -5/Factory | Evolved 2 slots: Propulsion x2 17365 | -5/Factory | Watched by a mysterious "MATRIX" hacker 17475 | -5/Factory | Build established: Scavenger-Tank 18065 | -5/Factory | Identified exit to Upper Caves 18194 | -5/Factory | Discovered new exit (range 15) 18465 | -5/Factory | Entered another Factory area 18465 | -4/Factory | Accompanied by 3 allies 18465 | -4/Factory | Evolved 2 slots: Propulsion x2 18557 | -4/Factory | Identified exit to DSF 18559 | -4/Factory | Entered DSF 18559 | -4/DSF | Accompanied by 3 allies 18608 | -4/DSF | Additional patrols routed to DSF 18707 | -4/DSF | Discovered new exit (range 16) 18729 | -4/DSF | Sterilization system engaged 18749 | -4/DSF | Ambient heat levels rising (+10) 18764 | -4/DSF | Ambient heat levels rising (+10) 18779 | -4/DSF | Ambient heat levels rising (+10) 18794 | -4/DSF | Ambient heat levels rising (+10) 18809 | -4/DSF | Ambient heat levels rising (+10) 18824 | -4/DSF | Ambient heat levels rising (+10) 18828 | -4/DSF | Entered Research 18828 | -3/Research | Accompanied by 1 ally 18828 | -3/Research | Evolved 2 slots: Utility x2 19028 | -3/Research | Revision forces began assault on 0b10 19072 | -3/Research | Fabricated Nova Cannon (x2) 19090 | -3/Research | Met up with Revision 17++ 19528 | -3/Research | Research terminal network offline 20162 | -3/Research | Spotted Striker 20163 | -3/Research | Spotted Executioner 20251 | -3/Research | Discovered new exit (range 14) 20271 | -3/Research | Identified exit to Testing 20283 | -3/Research | Discovered new exit (range 16) 20306 | -3/Research | Entered another Research area 20306 | -2/Research | Evolved 2 slots: Power x1, Utility x1 20578 | -2/Research | Fabricated Enh. Nova Cannon? 20911 | -2/Research | Build established: Scientist-Tank 21264 | -2/Research | Garrison activated, responded to threat 21563 | -2/Research | Build established: Hacker-Tank 21708 | -2/Research | Identified exit to Quarantine 21708 | -2/Research | Identified exit to Access 21806 | -2/Research | First assault squad dispatched 22471 | -2/Research | Build established: Tank 22892 | -2/Research | Lost 7 parts (1p4u2w) 22939 | -2/Research | Entered Access 22939 | -1/Access | Evolved 2 slots: Utility x2 22945 | -1/Access | Lost 10 parts (2p3n3u2w) 23189 | -1/Access | First assault squad dispatched 23220 | -1/Access | Destroyed 9 combat bots 23244 | -1/Access | Build established: Scientist-Tank 23425 | -1/Access | Lost 3 parts (1n1u1w) 23766 | -1/Access | Energy Cycler disabled 23837 | -1/Access | Spotted B-99 Colossus 23837 | -1/Access | Spotted B-99 Colossus 23891 | -1/Access | Discovered new exit (range 6) 23905 | *** | Escaped! Last Messages --------------- System interface override in place. 23805_ ALERT: Security rotation in progress. 23808_ O-32 Director: "IFF HANDSHAKE FAILED. SECURING TERMINAL." 23812_ ALERT: Hostiles spotted, dispatching reinforcements to Terminal A014. 23829_ L70LBWWI1NJP48S3EPMXKYU7TC5Y>KWXZLXSOF 23838_ Slug penetrates Wall. 23838_ Penetrated by Slug. 23838_ Slug penetrates Wall. 23878_ ALERT: Potential suspicious activity detected, Programmers report to Access Zone 1A. 23882_ Penetrated by Slug. 23882_ Slug penetrates Wall. 23890_ Connecting with Terminal... 23891_ The Access Shell folds into the floor. 23891_ EXIT=FOUND 23893_ System corrupted: Heat flow error (+107). 23896_ Sealed Heavy Doors breached. Map ----- +----------------------------------------------------+ | #???????????????# "" ""#??????????????????? | | #########+####### """""" ""#??????????????????? | | # + """""" T#???????"??????????? | | # #### "" ""#??????""??????????? | | # #??# "" ""#?????? ??????????? | | # #??# ""#?????? ??????????? | | # #??# ##????? ??????????? | | # #??# "#????##"+##???????? | | # ##########+####"#######! ########? | | # #? | | # #? | | ####+###########################+###! ####????? | | ## #????????????????????? ## "#???????? | | ## #??????????????????? ##g #????????? | | ## #????????????????? ## #????????? | | "" #??????????????? ## #????????? | | ##" #????????????? ""T"" ## #????????? | | ### #???????????? ?""""" ##g #????????? | | #?# #??????????????##############g #????????? | | ### #???????????????????###?????# #????????? | | + #??????????########## ####### #????????? | | ### #??????????" Y #????????? | | #?# " ? ???" #????????? | | ########"" "??" w#????????? | | """" #????????? | | "" "@ #????????? | | """ "" #????????? | | "?"" #????????? | | #########" "??" R #????????? | | #??? ???" """ """ #????????? | | #????? ???" """T""" #????????? | | """ #???????###???########## ####### #????????? | | """ #??????????????????????###?????? #????????? | | """ #?????????###########??????????? #????????? | | """ #?????????# #??????????? #????????? | | """ #?????????# #??????????? #????????? | | ####??????#= ""#??????????? +????????? | | + #??????# ""#??????????????????????? | | ## #??????# ""#??????????????????????? | | ## #??????# T#??????????????????????? | | ## #??????# ""#??????????????????????? | | ######## #??????# ""#??????????????????????? | | ???????# #??????# ""#??????????????????????? | | ??######+####???# #??????????????????????? | | ??# "#???# #??????????????????????? | | ??# ###### #??????????????????????? | | ??#= ###""# #??????????????????????? | | ??# " # "##+########?????????????????????? | | ??# """ + "" ??????????????????????? | | ??# """ # T ????????????????????? | +----------------------------------------------------+ Best States ------------- Heat Dissipation 142 Coolant Potential 120 Energy Generation 69 Energy Capacity 840 Matter Stores 300 Matter Capacity 300 Sight Range 16 Terrain Scan Density 10 ECM Strength 2 Jamming Range 12 Cloak Strength 5 Base Temperature (-) 100 Armor Coverage 1200 Resistance: KI 25 Core Shielding 20 Propulsion Shielding 33 Weapon Shielding 66 Phase Shifting 15 Evasion (%) 72 Targeting Accuracy 16 Armor Integrity Analysis 30 Recoil Reduction 6 Particle Charging 20 Offensive Hacking 20 Defensive Hacking 10 Authchip Count 1 Item Schematics ----------------- Cryofiber Web | -8/Materials | Scanalyzed Hvy. Plasma Cannon | -8/Storage | Hacked Lyr. Light Armor Plating | -7/Zion | Archive Adv. Heat Sink | -7/Zion | Archive Med. Treads | -7/Zion | Archive Hvy. Machine Gun | -7/Zion | Archive Core Analyzer | -7/Zion | Archive Lgt. Angular Momentum Engine | -7/Zion | Archive Arc Projector | -7/Zion | Archive Adv. Recoil Stabilizer | -7/Zion | Archive Imp. Weapon Cycler | -7/Zion | Archive Hvy. Rocket Launcher | -7/Zion | Archive Adv. Signal Interpreter | -7/Zion | Archive Imp. Trap Extractor | -7/Zion | Archive Imp. Trap Scanner | -7/Zion | Archive Phase Shifter | -7/Zion | Archive Hvy. Laser | -7/Zion | Archive Centrium Heavy Treads | -5/Factory | Scanalyzed Nova Cannon | -5/Factory | Hacked Quantum Rifle | -5/Factory | Hacked Enh. Nova Cannon | -3/Research | Hacked Robot Schematics ------------------ L-41 Fighter | -7/Zion | Archive O-24 Administrator | -7/Zion | Archive A-02 Transporter | -7/Zion | Archive Fabricated ------------ Hvy. Plasma Cannon | x2 | -7/Factory | Authchip Hvy. Plasma Cannon | x2 | -7/Factory Nova Cannon | x2 | -3/Research | Authchip Enh. Nova Cannon | x2 | -2/Research Repaired ---------- Nothing Studied --------- Wheel | -9/Materials | Hacked Arm. Wheel | -9/Materials | Hacked Hvy. Particle Cannon | -8/Materials | Hacked Hvy. Plasma Cannon | -7/Factory | Hacked Com. Wheel | -6/Factory | Hacked Arm. Huge Wheel | -6/Factory | Hacked Phase Cannon | -5/Factory | Hacked Nova Cannon | -3/Research | Hacked Quantum Reactor | -3/Research | Hacked Antimatter Reactor | -3/Research | Hacked Particle Reactor | -3/Research | Hacked Imp. Heavy Treads | -2/Research | Hacked Adv. Heavy Treads | -2/Research | Hacked Cmb. Linear Gravjet | -1/Access | Hacked Alien Tech Used ----------------- None Achievements -------------- Official Business Challenges ------------ None Game ------ Seed SystemLayeredPrototype Manual? 0 Play Time 03:19:29 Cumulative 236.1 hours Start 2026.08.13 @ 23:25:20 End 2026.08.14 @ 02:43:58 Sessions 1 Manual Loads 0 Difficulty Rogue Special Mode None Game No. 237 Rogue 183 Adventurer 54 Explorer 0 Win Type 0 Total 11 Types 7/0/1/1/0/0/0/1/0/1 Lore% 75 Gallery% 63 Achievement% 58 Wizard Run 0 Options --------- Layout 1 ASCII 0 Keyboard 0 Movement Mouse Keybinds 1 Fullscreen 2 Font 32/Tamsyn Map View 50x35 Zoom Use 0% Tactical HUD 1 Map Filters NONE Filters NONE Steam 1 RUN: cdf1f033-d262-43c2-86d9-df12c8ba14e6